Cogmind - Beta 13 X1 @@@ ROGUE MODE // 2023.06.22 @ 19:12:21 Player: Plexion Result: Destroyed by JO-RIW(R) with Subdweller Laser Performance ------------- Evolutions (0) 0 Regions Visited (2) 400 Robots Destroyed (30) 150 Value Destroyed (794) 794 Prototype IDs (0) 0 Alien Tech Used (0) 0 Bonus (0) 0 TOTAL SCORE: 1344 Bonus ------- None Cogmind --------- Core Integrity 0/250 Matter 182/300 Energy 100/100 System Corruption 0% Temperature Cool (6) Movement Core (100) Ox1 Location -10/Subcaves Parts ------- > --- POWER (1) -------- (None) > --- PROPULSION (2) --- (None) > --- UTILITY (2) ------ Small Storage Unit > --- WEAPON (2) ------- (None) > --- INVENTORY (8) ---- Medium Armor Plating Medium Armor Plating Medium Armor Plating Assault Rifle Assault Rifle Peak State ------------ > --- POWER ------------ Light Nuclear Core > --- PROPULSION ------- Light Treads Subdweller Monowheel > --- UTILITY ---------- Small Storage Unit Medium Armor Plating > --- WEAPON ----------- Light Assault Rifle Rocket Launcher > --- INVENTORY -------- Medium Armor Plating Medium Armor Plating Medium Armor Plating Assault Rifle Assault Rifle Rocket Launcher Rocket Launcher Rocket Launcher [Rating: 13] Favorites ----------- Power Light Nuclear Core Engine Ion Engine Power Core Light Nuclear Core Propulsion Light Treads Treads Light Treads Wheel Subdweller Monowheel Utility Small Storage Unit Storage Small Storage Unit Processor Targeting Computer Protection Medium Armor Plating Weapon Light Assault Rifle Ballistic Gun Light Assault Rifle Launcher Rocket Launcher Build | -11 -10 -10 ------- Run | Jun Mat Sub Slots Evolved . | . . . Power . | . . . Propulsion . | . . . Utility . | . . . Weapon . | . . . Parts Attached 19 | 6 9 4 Power 2 | 1 1 . Engine 1 | 1 . . Core 1 | . 1 . Reactor . | . . . Propulsion 4 | 2 1 1 Treads 3 | 2 1 . Leg . | . . . Wheel 1 | . . 1 Hover . | . . . Flight . | . . . Utility 4 | 1 3 . Device . | . . . Storage 1 | 1 . . Processor 1 | . 1 . Hackware . | . . . Protection 2 | . 2 . Artifact . | . . . Weapon 9 | 2 4 3 Energy Gun . | . . . Energy Cannon . | . . . Ballistic Gun 4 | 2 2 . Ballistic Cannon . | . . . Launcher 5 | . 2 3 Special Weapon . | . . . Impact Weapon . | . . . Slashing Weapon . | . . . Piercing Weapon . | . . . Special Melee Weapon . | . . . Unidentified Prototypes . | . . . Parts Lost 10 | . . 10 Power 1 | . . 1 Propulsion 3 | . . 3 Utility 1 | . . 1 Weapon 5 | . . 5 Highest Loss Streak 5 | . . 5 To Critical Strikes . | . . . Average Slot Usage (%) 89 | . 99 79 Engine 2 | . 4 . Core 10 | . 9 12 Treads 22 | . 28 17 Storage 14 | . 14 14 Protection 9 | . 12 6 Ballistic Gun 17 | . 22 13 Launcher 9 | . 5 13 Naked Turns . | . . . Heaviest Build 22 | 13 22 22 Greatest Support 40 | 40 40 40 Greatest Overweight (x) 3 | . . 3 Average Overweight (x) . | . . . Largest Inventory Capacity 8 | 8 8 8 Average Capacity 7 | 6 8 8 Most Carried 8 | 2 8 8 Average Carried 6 | 1 6 7 Final Capacity 8 | 8 8 8 Final Carried 8 | 2 8 5 Class Distribution -------------------- 100% | Mutant Dominant Class ---------------- Mutant | -10/Materials Mutant | -10/Subcaves Resources | -11 -10 -10 ----------- Run | Jun Mat Sub Matter Collected 695 | 260 211 224 Remotely . | . . . Salvage Created 742 | . 499 243 Parts 48 | . 25 23 Haulers Intercepted 1 | . 1 . Recyclers Shooed 4 | . 4 . Parts Field Recycled . | . . . Retrieved Matter . | . . . Parts Self-Destructed . | . . . Prevented . | . . . Kills | -11 -10 -10 ------- Run | Jun Mat Sub Combat Hostiles Destroyed 24 | . 12 12 Guns 6 | . 6 . AOE 18 | . 6 12 Classes Destroyed 7 | . 5 2 Worker 3 | . 3 . Hauler 1 | . 1 . Recycler 2 | . 2 . Swarmer 6 | . 6 . Grunt 6 | . 6 . Artisan 1 | . . 1 Subdweller 12 | . . 12 Best Kill Streak 5 | . 3 5 Combat Bots Only 5 | . 3 5 Max Kills in Single Turn 3 | . 3 2 Gunslinging . | . . . Exploded 3 | . 3 2 Melee . | . . . Uniques/NPCs Destroyed . | . . . Combat | -11 -10 -10 -------- Run | Jun Mat Sub Damage Taken 1299 | . 350 949 Core 260 | . 69 191 Absorbed by Shields . | . . . Core Remaining (%) 100 | 100 . . Volleys Fired 70 | . 44 26 Largest 2 | . 2 1 Hottest 40 | . 40 33 Shots Fired 107 | . 81 26 Gun 76 | . 76 . Cannon . | . . . Launcher 31 | . 5 26 Special . | . . . Kinetic 76 | . 76 . Thermal . | . . . Explosive 31 | . 5 26 Electromagnetic . | . . . Robot Hit Streak 14 | . 14 7 Robot Miss Streak 2 | . 2 2 Penetration Max . | . . . Secondary Targets . | . . . Shots Hit Robots 67 | . 54 13 Core Hits 52 | . 30 22 Critical Kills . | . . . Critical Parts Destroyed . | . . . Critical Strikes . | . . . Melee Attacks . | . . . Impact . | . . . Slashing . | . . . Piercing . | . . . Sneak Attacks . | . . . Combat Hostiles . | . . . Follow-up Attacks . | . . . Damage Inflicted 2613 | . 1060 1553 Guns 569 | . 569 . Cannons . | . . . Explosions 2032 | . 479 1553 Melee . | . . . Ramming 12 | . 12 . Kinetic 569 | . 569 . Thermal . | . . . Explosive 1998 | . 445 1553 Electromagnetic 34 | . 34 . Impact . | . . . Slashing . | . . . Piercing . | . . . Highest Corruption . | . . . Average Corruption . | . . . Corruption Purged . | . . . Corruption Blocked . | . . . Overload Shots . | . . . Overflow Damage 62 | . 40 22 Projectiles . | . . . Explosions 62 | . 40 22 Melee . | . . . Knockbacks . | . . . Impact . | . . . Kinetic . | . . . Secondary . | . . . Self-Inflicted Damage 414 | . 21 393 Shots 13 | . 2 11 Rammed 4 | . 4 . Targets Rammed 4 | . 4 . Kicked . | . . . Crushed . | . . . Highest Temperature 41 | . 41 . Average Temperature 11 | . 11 . Received Heat Transfer 258 | . 135 123 Siege Activations . | . . . Robots Corrupted . | . . . Combat Hostiles . | . . . Parts Fried . | . . . Impact Corruptions . | . . . Robots Melted . | . . . Combat Hostiles . | . . . Parts Melted . | . . . Heat Transferred . | . . . Parts Sabotaged . | . . . Parts Stolen . | . . . Parts Stripped . | . . . Power Chain Reactions . | . . . Missiles Intercepted . | . . . Alert | -11 -10 -10 ------- Run | Jun Mat Sub Peak Influence 232 | . 232 . Initial . | . . . Average 71 | . 77 . Maximum Alert Level 1 | . 1 . Low Security (%) 99 | 100 99 . Level 1 . | . . . Level 2 . | . . . Level 3 . | . . . Level 4 . | . . . Level 5 . | . . . High Security . | . . . Max Security . | . . . Squads Dispatched 1 | . 1 . Investigation . | . . . Extermination . | . . . Reinforcement 1 | . 1 . Assault . | . . . Garrison . | . . . Intercept . | . . . Searches Triggered . | . . . Construction Impeded . | . . . Haulers Reinforced . | . . . Active Scanning Responses . | . . . Cargo Convoy Interrupts . | . . . Stealth | -11 -10 -10 --------- Run | Jun Mat Sub Distress Signals 1 | . 1 . Communications Jammed . | . . . Distress Signals . | . . . Times Spotted 36 | . 23 13 Peak Tracking Total 5 | . 5 4 Tactical Retreats . | . . . Traps | -11 -10 -10 ------- Run | Jun Mat Sub Traps Triggered 2 | . 2 . Indirectly . | . . . Trap Hack Attempts . | . . . Triggered . | . . . Disarmed . | . . . Reprogrammed . | . . . Reused . | . . . Traps Extracted . | . . . Installed . | . . . Triggered . | . . . Machines | -11 -10 -10 ---------- Run | Jun Mat Sub Machines Disabled 2 | . 2 . Max in Single Turn 2 | . 2 . Machines Repaired . | . . . Machines Sabotaged . | . . . Overloaded Fab Kills . | . . . Hacking | -11 -10 -10 --------- Run | Jun Mat Sub Machines Accessed 2 | . 1 1 Terminals 1 | . 1 . Fabricators . | . . . Repair Stations . | . . . Recycling Units . | . . . Scanalyzers . | . . . Garrison Access . | . . . Total Hacks 7 | . 2 5 Successful 5 | . . 5 Failed 2 | . 2 . Catastrophic . | . . . Database Lockouts . | . . . Manual 2 | . 2 . Terminals 2 | . 2 . Fabricators . | . . . Repair Stations . | . . . Recycling Units . | . . . Scanalyzers . | . . . Garrison Access . | . . . Terminal Hacks 5 | . . 5 Record 5 | . . 5 Fabricator Hacks . | . . . Repair Station Hacks . | . . . Recycling Unit Hacks . | . . . Scanalyzer . | . . . Garrison Access Hacks . | . . . Unauthorized Hacks . | . . . Terminals . | . . . Fabricators . | . . . Repair Stations . | . . . Recycling Units . | . . . Scanalyzers . | . . . Garrison Access . | . . . Data Cores Recovered . | . . . Used . | . . . Hacking Detections 1 | . 1 . Full Trace Events . | . . . Feedback Events . | . . . Feedback Blocked . | . . . Robot Schematics Acquired . | . . . Robots Built . | . . . Authchips . | . . . Time . | . . . Total Robot Build Rating . | . . . Part Schematics Acquired . | . . . Parts Built . | . . . Authchips . | . . . Time . | . . . Total Part Build Rating . | . . . Parts Repaired . | . . . Time . | . . . Parts Recycled . | . . . Recycled Matter . | . . . Retrieved Matter . | . . . Retrieved Components . | . . . Parts Scanalyzed . | . . . Part Schematics Acquired . | . . . Parts Damaged . | . . . Bothacking | -11 -10 -10 ------------ Run | Jun Mat Sub Used RIF Installer . | . . . Robots Hacked . | . . . Non-combat . | . . . Combat . | . . . Robot Hacks Applied . | . . . Relay Couplers Released . | . . . Fabnet Peak Effective % . | . . . Robots Rewired . | . . . Allies Hacked . | . . . Hacks Repelled . | . . . Allies | -11 -10 -10 -------- Run | Jun Mat Sub Total Allies . | . . . Largest Group . | . . . Highest-Rated Group . | . . . Highest-Rated Ally . | . . . Total Orders . | . . . Ally Attacks . | . . . Total Damage . | . . . Kills . | . . . Allies Corrupted . | . . . Allies Melted . | . . . Intel | -11 -10 -10 ------- Run | Jun Mat Sub Robot Analysis Total . | . . . Derelict Logs Recovered 2 | . . 2 Drone Launches . | . . . Drone Recoveries . | . . . Exploration | -11 -10 -10 ------------- Run | Jun Mat Sub Turns Passed 2159 | 92 1046 1021 Spaces Moved 1196 | 54 550 592 Core 51 | 4 . 47 Treads 1115 | 50 550 515 Legs . | . . . Wheels 30 | . . 30 Hover . | . . . Flight . | . . . Fastest Speed 50 | 50 160 120 Average Speed 161 | 151 160 162 Slowest Speed 240 | 160 160 240 Overloaded Moves . | . . . Propulsion Burnouts . | . . . Robots Hopped . | . . . Cave-ins Triggered . | . . . Exploration Rate (%) 50 | 6 93 52 Regions Visited 2 Branch Regions 1 Pre-discovered Areas 1 | . . 1 Known Exits Taken . | . . . Unknown Exits Taken 2 | 1 1 . Scrap Searched 7 | . . 7 Spaces Dug 18 | . 5 13 Terrain Destroyed 184 | . 24 160 Melee . | . . . Projectile . | . . . AOE 184 | . 24 160 Terrain Rammed . | . . . Walls Destroyed . | . . . Machines Disabled . | . . . Actions | -11 -10 -10 --------- Run | Jun Mat Sub Total 1328 | 61 644 623 Wait 17 | . 16 1 Move 1194 | 53 549 592 Hop . | . . . Pick Up 15 | 2 13 . Fast Attach 10 | 6 3 1 Attach 5 | . 2 3 Detach 2 | . 2 . Swap 4 | . 4 . Drop 7 | . 7 . Fire 70 | . 44 26 Melee . | . . . Ram . | . . . Kick . | . . . Crush 4 | . 4 . Escape Stasis . | . . . Rewire . | . . . Trap . | . . . Miscellaneous . | . . . Route ------- -11/Junkyard -10/Materials (discovered 6 exits: [*Mat x3] / [*Min x2] / *Sub) -10/Subcaves (discovered 2 exits: [*Mat] / Rec) History --------- Turn | Location | Event 3 | -11/Junkyard | Discovered new exit (range 15) 93 | -11/Junkyard | Entered Materials 246 | -10/Materials | Discovered new exit (range 16) 317 | -10/Materials | Build established: Mutant 530 | -10/Materials | Discovered new exit (range 14) 794 | -10/Materials | Discovered new exit (range 7) 923 | -10/Materials | Discovered new exit (range 15) 1003 | -10/Materials | Discovered new exit (range 15) 1129 | -10/Materials | Discovered new exit (range 7) 1139 | -10/Materials | Entered Subcaves 1141 | -10/Subcaves | Discovered new exit (range 8) 1157 | -10/Subcaves | Identified exit to Recycling 1425 | -10/Subcaves | Ambushed by angry Subdweller bent on revenge 1428 | -10/Subcaves | Learned location of Zion (-7) 1428 | -10/Subcaves | Met a Zionite searching for "candidates" 1463 | -10/Subcaves | Learned Materials garrison access intel 1490 | -10/Subcaves | Disturbed a concealed Subdweller 1538 | -10/Subcaves | Shifting Twisted Machinery released Mak. System Shield 1893 | -10/Subcaves | Visited Clippyterm 1898 | -10/Subcaves | Learned 40 Factory zone layouts 2041 | -10/Subcaves | Disturbed a concealed Subdweller 2046 | -10/Subcaves | Ambushed by Subdweller buried in earth 2048 | -10/Subcaves | Ambushed by Subdweller buried in earth 2048 | -10/Subcaves | Ambushed by Subdweller buried in earth 2049 | -10/Subcaves | Core integrity fell below 50% 2087 | -10/Subcaves | Lost 5 parts (1p1n3w) 2112 | -10/Subcaves | Ambushed by Subdweller buried in earth 2114 | -10/Subcaves | Core integrity fell below 20% 2160 | -10/Subcaves | Destroyed by JO-RIW(R) with Subdweller Laser Last Messages --------------- 02111_ Lgt. Assault Rifle destroyed. 02112_ The unstable cave ceiling collapses. 02113_ 0A-FX9(R): "FREEEEDUMB!" 02116_ Destroyed Scrap Shield. 02116_ 0A-FX9(R) destroyed. 02118_ ID-YJL(R) destroyed. 02121_ The unstable cave ceiling collapses. 02121_ Scrap Shield Fragment crushed. 02131_ The unstable cave ceiling collapses. 02153_ Searching scrap... 02153_ Found Sub. Optics. 02153_ Found Sub. Machine Gun. 02153_ Found 25 Matter. 02154_ Acquired 25 matter. 02155_ Searching scrap... 02155_ Found Battle Rifle. 02155_ Found 24 Matter. 02156_ Acquired 24 matter. 02159_ Rocket Launcher destroyed. 02159_ Destroyed Rocket Launcher. Map ----- +----------------------------------------------------+ | ????????????????????????# ## | | ???????????????????????## ##### | | ?????????????????????### #???# | | ???????????????????### #???## | | ??????????????????## ###????# | | ?????????????????## ##?????# | | ?????????????????# ##???## | | ????????????????## ## #??## | | ?????????######## ## #### | | ????????## " ## ## | | ???????## ## # ### | | ???????# " ## ##?#### | | ???????# # ## #?????### | | ???????# & ######??? | | ???????# ## *! ### | | ???????## # ##&# # | | ????????# ## ### &=! | | ????????## ######?## %% | | ?????????### # ##??????## =! | | ???????????######?####?## | | ?????????????????## ### | | ??????????#####?## ### | | ????????### ### ### | | ????????# ##< ## | | ????????# R ### | | ?????????# @ #"#" #? | | ????????# ![### #? | | ????????###<&## & | | ??????????####### ## | | ????????????????# ######### ## | | ????????????????####????????###? # | | ?????????????????????????????????### | | ???????????????????????????????????? | | ???????????????????????????????????? | | ???????????????????????????????????? | | ?????????????????????###???????????? | | ????????????????????##%#???????????? | | ???????????????????## #???????????? | | ???????????????????# #???????????? | | ???????????????????# #???????????? | | ??????????????????## #???????????? | | ?????????????????## ##???????????? | | ?????????????????# ##???????????? | | ?????????????????## #???????????? | | ?????????????????## #???????????? | | ????????????????## #???????????? | | ????????????????# ##??????????? | | ??????????????### %##?????????? | | ??????????????# #?####????? | | ??????????????## ### ##???? | +----------------------------------------------------+ Best States ------------- Heat Dissipation 25 Energy Generation 14 Energy Capacity 250 Matter Stores 300 Matter Capacity 300 Sight Range 16 Terrain Scan Density 10 Armor Coverage 225 Evasion (%) 40 Targeting Accuracy 5 Recoil Reduction 2 Item Schematics ----------------- None Robot Schematics ------------------ None Fabricated ------------ Nothing Alien Tech Used ----------------- None Achievements -------------- None Challenges ------------ None Game ------ Seed TrackerFortressSaw Manual? 0 Play Time 00:13:52 Cumulative 408.9 hours Start 2023.06.22 @ 19:01:51 End 2023.06.22 @ 19:12:21 Sessions 1 Manual Loads 0 Difficulty Rogue Special Mode None Game No. 493 Rogue 406 Adventurer 87 Explorer 0 Win Type - Total 21 Types 7/0/12/1/1/0/0/0/0 Lore% 85 Gallery% 90 Achievement% 73 Wizard Run 0 Options --------- ASCII 0 Keyboard 1 Movement Numpad Keybinds 0 Fullscreen 1 Font 18/SmallcapsGlow Map View 76x50 Tactical HUD 1 Map Filters NONE Filters NONE Steam 1 RUN: 91f8bf3e-2555-4ae9-8d13-b426f53716be